bitfinex-derivatives/quotes_ETHF0:USTF0_20250701
["timestamp","ask_amount","ask_price","bid_price","bid_amount"]
[1751342920741,0.8049,2484.2,2484.1,0.80488]
[1751342921739,0.8049,2484.2,2484.1,1.3491]
[1751342921937,0.8049,2484.2,2484.1,2.15402]
[1751342922138,0.8049,2484.2,2484.1,1.3491]
[1751342922741,0.8049,2484.2,2484.1,2.15402]
[1751342926043,0.80488,2484.3,2484.2,0.80485]
[1751342926243,0.80488,2484.3,2484.2,3.08387029]
[1751342929844,5.91377,2484.5,2484.2,3.08387029]
[1751342929845,3.9018,2484.5,2484.2,2.27902029]
[1751342930050,0.80483,2484.4,2484.3,0.80482]
[1751342932048,0.80483,2484.4,2484.3,1.46462]
[1751342932249,0.80483,2484.4,2484.3,0.6598]
[1751342932449,0.80483,2484.4,2484.3,1.46465]
[1751342937951,0.80483,2484.4,2484.3,2.78905]
[1751342940553,0.80483,2484.4,2484.3,1.46465]
[1751342943558,0.80483,2484.4,2484.3,0.6598]
[1751342943760,0.80485,2484.3,2484.2,0.80488]
[1751342947960,0.80485,2484.3,2484.2,3.08390029]
[1751342948157,0.80485,2484.3,2484.2,4.42880029]
[1751342949965,1.49882,2484.5,2484.4,0.80482]
[1751342950765,0.80482,2484.4,2484.3,3.54612]
[1751342951469,0.80482,2484.4,2484.3,2.7413]
[1751342951665,0.80482,2484.4,2484.3,1.3964]
[1751342952766,0.80488,2484.2,2484.1,5.08046966]
[1751342952964,0.80488,2484.2,2484.1,1.20266966]
[1751342953165,0.80492,2484.1,2484.0,2.70238966]
[1751342953370,1.46112,2484.1,2484.0,2.70238966]
[1751342956269,1.46112,2484.1,2484.0,1.49972]
[1751342956671,1.46112,2484.1,2484.0,2.70676944]
[1751342957264,1.46112,2484.1,2484.0,0.6948]
[1751342958475,1.46112,2484.1,2484.0,1.49975]
[1751342960878,1.46112,2484.1,2484.0,0.6948]
[1751342962279,1.46112,2484.1,2484.0,1.49975]
[1751342962978,0.80495,2484.0,2483.9,2.68200944]
[1751342963173,0.80495,2484.0,2483.9,1.87704944]
[1751342963375,0.80495,2484.0,2483.9,1.20704944]
[1751342963376,3.08397029,2484.0,2483.9,1.20704944]
[1751342963574,0.80498,2483.9,2483.8,4.41484944]
[1751342963874,0.80498,2483.9,2483.8,5.21985944]
[1751342964780,1.46113,2484.1,2484.0,0.80495]
[1751342964982,0.80493,2484.1,2484.0,0.80495]
[1751342966089,0.80498,2484.0,2483.9,0.80496]
[1751342966391,0.80495,2484.1,2484.0,0.80492]
[1751342966590,0.80495,2484.1,2484.0,3.08394029]
[1751342966889,0.8049,2484.2,2484.1,0.80492]
[1751342967090,0.8049,2484.2,2484.1,1.49482]
[1751342967287,0.8049,2484.2,2484.1,0.6899]
[1751342968487,0.8049,2484.2,2484.1,1.49482]
[1751342968688,0.8049,2484.2,2484.1,0.6899]
[1751342969191,0.8049,2484.2,2484.1,1.49482]
[1751342969991,3.886,2484.4,2484.1,1.49482]
[1751342969992,4.69084,2484.4,2484.3,0.80485]
[1751342970591,0.80488,2484.2,2484.1,1.49478]
[1751342971300,0.80487,2484.3,2484.2,0.80485]
[1751342972596,0.80488,2484.2,2484.1,1.4948]
[1751342973099,0.80488,2484.2,2484.1,0.6899]
[1751342973492,0.80488,2484.2,2484.1,1.49482]
[1751342974397,0.80488,2484.3,2484.2,0.80485]
[1751342974598,1.48304,2484.4,2484.3,0.80485]
[1751342974998,0.80484,2484.4,2484.3,0.80485]
[1751342979101,0.80487,2484.3,2484.2,0.80485]
[1751342979400,0.80487,2484.3,2484.2,2.18325]
[1751342979599,0.80487,2484.3,2484.2,1.3784]
[1751342980003,0.80488,2484.2,2484.1,4.70259]
[1751342981603,0.80487,2484.3,2484.2,0.80484]
[1751342990213,0.80487,2484.3,2484.2,2.21984]
[1751342996719,0.80487,2484.3,2484.2,0.80484]
[1751342998815,0.80488,2484.2,2484.1,0.6899]
[1751342999012,1.49938,2484.2,2484.1,0.6899]
[1751342999521,1.49938,2484.2,2484.1,1.49482]
[1751343007918,0.6945,2484.2,2484.1,1.49482]
[1751343008317,1.49938,2484.2,2484.1,1.49482]
[1751343008621,0.80488,2484.2,2484.1,1.49482]
[1751343008822,1.47954,2484.4,2484.3,0.80485]
[1751343009020,0.80488,2484.3,2484.2,0.80486]
[1751343009419,1.47954,2484.4,2484.3,0.80485]
[1751343012622,0.6747,2484.4,2484.3,0.80485]
[1751343012813,1.47952,2484.4,2484.3,0.80485]
[1751343016125,0.80488,2484.3,2484.2,0.80486]
[1751343021030,0.80488,2484.2,2484.1,3.0920913]
[1751343029044,6.64102,2484.6,2484.1,3.0920913]
[1751343029045,5.21972,2484.6,2484.1,2.2871913]
[1751343029244,0.80488,2484.3,2484.2,0.80485]
[1751343029542,0.80488,2484.3,2484.2,2.14155]
[1751343031748,0.80484,2484.4,2484.3,0.80482]
[1751343031947,0.80484,2484.4,2484.3,3.1130113]
[1751343032147,4.69149,2484.6,2484.5,0.80479]
[1751343032349,4.69149,2484.6,2484.5,2.4020813]
[1751343036054,4.69149,2484.6,2484.5,1.5972913]
[1751343036249,0.80479,2484.5,2484.4,2.4020913]
[1751343038256,0.80479,2484.5,2484.4,3.8316913]
[1751343039651,0.80479,2484.5,2484.4,3.0268913]
[1751343039851,0.80479,2484.5,2484.4,1.5972913]
[1751343040251,0.80479,2484.5,2484.4,2.4021113]
[1751343045563,0.80482,2484.4,2484.3,0.7109]
[1751343045863,3.0913113,2484.4,2484.3,1.51575]
[1751343047059,3.0913113,2484.4,2484.3,0.7109]
[1751343049361,0.80488,2484.2,2484.1,1.49479]
[1751343049561,2.4021713,2484.2,2484.1,0.6899]
[1751343049764,0.80488,2484.2,2484.1,0.6899]
[1751343050366,0.80492,2484.1,2484.0,1.20652109]
[1751343050562,0.80495,2484.0,2483.9,4.41432109]
[1751343050763,0.80495,2484.0,2483.9,3.2078]
[1751343054367,0.80501,2483.8,2483.7,15.29182]
[1751343054566,0.80501,2483.8,2483.7,4.01282]
[1751343055070,0.805,2483.9,2483.8,0.80497]
[1751343058673,0.80501,2483.8,2483.7,4.01283]
[1751343060575,0.80498,2484.0,2483.9,0.80496]
[1751343060772,0.805,2483.9,2483.8,0.80498]
[1751343061474,0.80497,2484.0,2483.9,0.80495]
[1751343065971,0.80497,2484.0,2483.9,1.46445]
[1751343070778,0.80494,2484.1,2484.0,0.80492]
[1751343073882,2.40250573,2484.1,2484.0,0.80492]
[1751343077081,0.80495,2484.0,2483.9,0.6595]
[1751343079284,0.80501,2483.9,2483.8,0.80501]
[1751343079481,3.06787573,2483.9,2483.8,0.80501]
[1751343080585,0.80501,2483.8,2483.7,4.71792]
[1751343081284,0.80501,2483.8,2483.7,5.92444109]
[1751343085597,0.80501,2483.8,2483.7,5.11942109]
[1751343085899,0.80501,2483.8,2483.7,5.92446109]
[1751343087302,0.80501,2483.8,2483.7,4.71794]
[1751343089404,0.80501,2483.8,2483.7,5.92446109]
[1751343089604,0.80501,2483.8,2483.7,4.71794]
[1751343089798,0.80501,2483.8,2483.7,3.9129]
[1751343089998,0.80501,2483.8,2483.7,5.11942109]
[1751343090401,0.80501,2483.8,2483.7,3.9129]
[1751343090704,0.80501,2483.8,2483.7,1.91162109]
[1751343091404,0.80501,2483.8,2483.7,2.71666109]
[1751343092504,0.80501,2483.8,2483.7,1.51014]
[1751343096407,3.06787573,2483.9,2483.8,0.80501]
[1751343096703,1.47031,2483.9,2483.8,0.80501]
[1751343098415,0.80501,2483.8,2483.7,1.51012]
[1751343100007,0.80501,2483.8,2483.7,2.71664109]
[1751343100208,0.80501,2483.8,2483.7,1.51012]
[1751343100707,0.80501,2483.8,2483.7,2.71664109]
[1751343102209,0.80501,2483.8,2483.7,1.91162109]
[1751343102502,0.80501,2483.8,2483.7,0.7051]
[1751343102909,0.80501,2483.8,2483.7,2.71666109]
[1751343106708,0.80501,2483.8,2483.7,1.51014]
[1751343107309,0.80501,2483.8,2483.7,2.80744]
[1751343109002,0.80501,2483.8,2483.7,1.51014]
[1751343122818,0.80501,2483.9,2483.8,0.80501]
[1751343123017,0.80501,2483.9,2483.8,2.40257573]
[1751343123920,0.80497,2484.0,2483.9,0.80495]
[1751343125121,0.80498,2483.9,2483.8,2.40254573]
[1751343126320,0.80498,2484.0,2483.9,0.80496]
[1751343129622,0.80498,2483.9,2483.8,1.59756573]
[1751343129924,5.896,2484.1,2483.8,2.40256573]
[1751343130124,0.80498,2483.9,2483.8,2.40256573]
[1751343131422,0.80498,2483.9,2483.8,1.59756573]
[1751343131629,0.80501,2483.8,2483.7,4.49530573]
[1751343133122,0.80501,2483.8,2483.7,3.69026573]
[1751343134424,0.80501,2483.8,2483.7,4.49530573]
[1751343136324,0.80501,2483.8,2483.7,0.7051]
[1751343136325,2.40257573,2483.8,2483.7,0.7051]
[1751343141721,6.81792573,2483.8,2483.4,3.32513109]
[1751343141922,2.40267573,2483.5,2483.4,2.72063109]
[1751343142223,0.80511,2483.5,2483.4,2.72063109]
[1751343142419,0.6839,2483.7,2483.6,0.80508]
[1751343142630,0.80504,2483.7,2483.6,0.80508]
[1751343143128,3.2078,2483.8,2483.7,0.80504]
[1751343143437,0.80504,2483.7,2483.6,2.40262573]
[1751343143625,0.80504,2483.7,2483.6,0.80506]
[1751343143827,0.80508,2483.6,2483.5,2.40264573]
[1751343144132,0.80507,2483.7,2483.6,0.80507]
[1751343144733,0.80508,2483.6,2483.5,2.40265573]
[1751343145332,0.80507,2483.7,2483.6,0.80506]
[1751343146535,0.80508,2483.6,2483.5,2.40266573]
[1751343151335,0.80507,2483.7,2483.6,0.80506]
[1751343152038,5.61039573,2483.8,2483.7,0.80504]
[1751343152337,4.01283,2483.8,2483.7,0.80504]
[1751343154037,4.01283,2483.8,2483.7,2.20824]
[1751343154239,4.01283,2483.8,2483.7,1.4032]
[1751343155138,4.01283,2483.8,2483.7,2.20824]
[1751343156340,4.01283,2483.8,2483.7,1.4032]
[1751343157838,4.01283,2483.8,2483.7,2.20824]
[1751343160344,4.01283,2483.8,2483.7,1.4032]
[1751343160645,4.01283,2483.8,2483.7,2.20824]
[1751343160845,4.01283,2483.8,2483.7,1.4032]
[1751343161243,4.01283,2483.8,2483.7,2.20824]
[1751343165949,0.80503,2483.8,2483.7,2.20824]
[1751343175658,0.80503,2483.8,2483.7,1.4032]
[1751343175858,0.80503,2483.8,2483.7,2.20824]
[1751343179361,0.80503,2483.8,2483.7,1.4032]
[1751343185760,5.22012,2484.1,2483.7,1.4032]
[1751343185964,0.805,2483.9,2483.8,2.40257573]
[1751343186159,0.805,2483.9,2483.8,3.79567573]
[1751343189259,3.8969,2484.1,2483.8,5.00317573]
[1751343189464,0.80493,2484.1,2484.0,1.59756573]
[1751343189859,0.80493,2484.1,2484.0,2.31236573]
[1751343190162,0.80493,2484.1,2484.0,0.7148]
[1751343192164,0.80493,2484.1,2484.0,1.51975]
[1751343192564,0.80493,2484.1,2484.0,0.7148]
[1751343192960,2.40247573,2484.2,2484.1,0.80492]
[1751343193160,0.80492,2484.1,2484.0,2.91553]
[1751343194463,5.46229558,2484.3,2484.0,3.70816573]
[1751343194667,24.255,2484.2,2484.1,0.6644]
[1751343194965,25.05988,2484.2,2484.1,1.46932]
[1751343201775,25.05988,2484.2,2484.1,0.6644]
[1751343203178,25.05988,2484.2,2484.1,1.46932]
[1751343204576,25.05788,2484.2,2484.1,1.46932]
[1751343205378,24.253,2484.2,2484.1,1.46932]
[1751343205678,25.05788,2484.2,2484.1,1.46932]
[1751343207178,25.05788,2484.2,2484.1,0.6644]
[1751343207378,25.05788,2484.2,2484.1,1.46932]
[1751343214285,0.80492,2484.1,2484.0,1.51973]
[1751343214586,2.40248573,2484.1,2484.0,0.7148]
[1751343216680,0.80498,2483.9,2483.8,1.4826]
[1751343216884,2.40254573,2483.9,2483.8,1.4826]
[1751343218192,2.40254573,2483.9,2483.8,0.6776]
[1751343219590,2.40254573,2483.9,2483.8,1.48261]
[1751343219790,2.40254573,2483.9,2483.8,0.6776]
[1751343220588,2.40254573,2483.9,2483.8,1.48261]
[1751343220791,2.40254573,2483.9,2483.8,0.6776]
[1751343222595,0.80504,2483.7,2483.6,3.2078]
[1751343222796,0.80504,2483.7,2483.6,4.01288]
[1751343226399,0.80504,2483.7,2483.6,3.2078]
[1751343226801,0.80504,2483.7,2483.6,4.01288]
[1751343227406,0.80504,2483.7,2483.6,3.2078]
[1751343227602,0.80504,2483.7,2483.3,2.96801872]
[1751343227603,32.44513146,2483.7,2483.3,3.2078]
[1751343227894,3.2078,2483.4,2483.1,1.59756573]
[1751343228100,3.2078,2483.4,2483.1,2.26976573]
[1751343228101,0.80523,2483.2,2483.1,2.26976573]
[1751343228401,0.80523,2483.2,2483.1,0.6722]
[1751343228600,0.80523,2483.2,2483.1,1.47744]
[1751343229304,0.80523,2483.2,2483.1,2.15264]
[1751343230901,0.80523,2483.2,2483.1,1.3474]
[1751343235406,0.80523,2483.2,2483.1,2.15264]
[1751343235801,1.59756573,2483.3,2483.2,0.80521]
[1751343236406,0.80518,2483.3,2483.2,0.80521]
[1751343236910,4.01297,2483.4,2483.3,0.80517]
[1751343237405,0.80517,2483.3,2483.2,2.14047]
[1751343237597,4.01296,2483.4,2483.3,0.80517]
[1751343237800,3.2078,2483.4,2483.3,0.80517]
[1751343239307,4.01294,2483.4,2483.3,2.14047]
[1751343239704,3.2078,2483.4,2483.3,2.14047]
[1751343242904,3.2078,2483.4,2483.3,4.42380444]
[1751343243106,3.2078,2483.4,2483.3,2.14047]
[1751343245302,3.2078,2483.8,2483.5,2.01275]
[1751343245510,3.2078,2483.8,2483.7,0.80504]
[1751343245907,3.2078,2483.8,2483.7,2.20894]
[1751343249416,5.49113444,2484.1,2484.0,0.80495]
[1751343249711,3.2078,2484.1,2484.0,0.80495]
[1751343251110,3.2078,2484.1,2484.0,2.10665]
[1751343252211,3.76321444,2484.3,2484.2,0.80488]
[1751343252412,0.80489,2484.2,2484.0,1.3017]
[1751343252610,0.80489,2484.2,2484.1,0.80489]
[1751343254618,2.95833444,2484.3,2484.2,0.80488]
[1751343254619,0.675,2484.3,2484.2,0.80488]
[1751343254823,3.2078,2484.4,2484.3,0.80485]
[1751343256017,3.2078,2484.4,2484.3,2.10265]
[1751343259621,0.6799,2484.7,2484.6,0.80475]
[1751343261424,1.48462,2484.7,2484.6,0.80475]
[1751343261823,0.6799,2484.7,2484.6,0.80475]
[1751343262518,1.48462,2484.7,2484.6,0.80475]
[1751343263127,0.6799,2484.7,2484.6,0.80475]
[1751343264025,1.48462,2484.7,2484.6,0.80475]
[1751343264932,0.6799,2484.7,2484.6,0.80475]
[1751343265228,3.2078,2484.8,2484.7,0.80472]
[1751343266624,0.80466,2484.9,2484.8,0.80469]
[1751343267029,0.6554,2485.0,2484.9,0.80466]
[1751343267528,3.2078,2485.1,2485.0,0.80462]
[1751343267924,3.2078,2485.1,2485.0,3.08795444]
[1751343269224,0.7166,2485.2,2485.1,0.80459]
[1751343269729,0.7166,2485.2,2485.1,1.47579]
[1751343271730,6.91013444,2485.5,2485.3,0.80452]
[1751343271928,1.52032,2485.4,2485.2,0.80453]
[1751343272522,0.80453,2485.3,2485.1,0.6712]
[1751343272723,1.52032,2485.4,2485.2,0.80453]
[1751343273232,1.52032,2485.4,2485.1,0.6712]
[1751343273233,1.52032,2485.4,2485.3,0.80453]
[1751343274933,4.72812,2485.4,2485.3,0.80453]
[1751343275227,3.9236,2485.4,2485.1,0.6712]
[1751343275430,3.2078,2485.7,2485.2,2.28333444]
[1751343275733,3.2078,2485.7,2485.1,3.879]
[1751343275734,5.49113444,2485.7,2485.3,1.4126]
[1751343275934,3.08781444,2485.5,2485.4,0.80449]
[1751343276130,3.08781444,2485.5,2485.1,2.68267]
[1751343276431,0.6502,2485.4,2485.3,0.80453]
[1751343279338,1.45469,2485.4,2485.3,0.80453]
[1751343279538,0.6502,2485.4,2485.3,0.80453]
[1751343282533,1.45469,2485.4,2485.3,0.80453]
[1751343282735,5.86925,2485.4,2485.0,0.6715]
[1751343282934,0.80464,2485.0,2484.9,0.80465]
[1751343283636,1.49762,2485.1,2484.9,0.80465]
[1751343283832,0.693,2485.1,2484.7,6.0155]
[1751343284035,3.9008,2485.1,2484.8,0.80467]
[1751343284341,0.80464,2485.0,2484.9,0.80465]
[1751343285242,0.80464,2485.0,2484.9,0.80466]
[1751343286441,0.80468,2484.9,2484.8,0.80466]
[1751343287334,0.80469,2484.8,2484.7,1.49922]
[1751343287637,4.65999,2484.8,2484.7,0.80472]
[1751343292646,1.45219,2484.8,2484.7,0.80472]
[1751343299250,0.6475,2484.8,2484.7,0.80472]
[1751343299550,1.45219,2484.8,2484.7,0.80472]
[1751343303853,0.6475,2484.8,2484.7,0.80472]
[1751343304250,1.45219,2484.8,2484.7,0.80472]
[1751343304451,0.6475,2484.8,2484.7,0.80472]
[1751343305450,1.45219,2484.8,2484.7,0.80472]
[1751343306051,0.6475,2484.8,2484.7,0.80472]
[1751343309454,4.01246,2484.9,2484.8,0.80469]
[1751343310054,3.2078,2484.9,2484.8,0.80469]
[1751343311149,4.01246,2484.9,2484.8,0.80469]
[1751343311954,3.2078,2484.9,2484.8,0.80469]
[1751343312353,4.01245,2485.0,2484.9,0.80466]
[1751343313358,3.2078,2485.0,2484.9,0.80466]
[1751343313558,4.01242,2485.0,2484.9,0.80466]
[1751343313760,0.80466,2484.9,2484.8,2.13847]
[1751343314055,0.80466,2484.9,2484.8,1.45517]
[1751343314257,0.80469,2484.8,2484.7,1.48799]
[1751343316760,0.80468,2484.9,2484.8,0.80466]
[1751343319665,0.80469,2484.8,2484.7,1.488]
[1751343319864,0.6636,2484.8,2484.7,1.488]
[1751343320065,1.46829,2484.8,2484.7,1.488]
[1751343322861,1.46829,2484.8,2484.7,0.6833]
[1751343323065,1.46829,2484.8,2484.7,1.48802]
[1751343323863,4.67609,2484.8,2484.7,1.48802]
[1751343327769,6.27284211,2484.8,2484.7,1.48802]
[1751343329771,3.06504211,2484.8,2484.7,1.48802]
[1751343329971,6.27284211,2484.8,2484.7,1.48802]
[1751343331361,0.80482,2484.4,2484.3,1.60221558]
[1751343331670,0.80482,2484.4,2484.0,0.6671]
[1751343331671,0.80492,2484.1,2484.0,0.6671]
[1751343331868,0.80492,2484.1,2484.0,1.3219]
[1751343332372,0.80492,2484.1,2484.0,2.12682]
[1751343332666,2.40167211,2484.1,2484.0,0.6671]
[1751343332867,6.81686211,2484.1,2483.7,3.91423441]
[1751343333069,2.40176211,2483.8,2483.7,3.91423441]
[1751343333269,2.40176211,2483.8,2483.7,3.10920441]
[1751343333569,2.40176211,2483.8,2483.7,0.7019]
[1751343333874,0.80501,2483.8,2483.7,1.50694]
[1751343334174,0.80501,2483.8,2483.7,0.7019]
[1751343335572,0.80501,2483.8,2483.7,1.50694]
[1751343336372,0.80501,2483.8,2483.7,0.7019]
[1751343336570,0.80508,2483.6,2483.5,0.6646]
[1751343336773,3.08800241,2483.6,2483.5,0.6646]
[1751343338574,0.8052,2483.3,2483.2,0.80518]
[1751343338762,0.8052,2483.3,2483.2,2.14518]
[1751343339274,0.8052,2483.3,2483.2,0.6865]
[1751343341570,0.80524,2483.1,2483.0,0.7181]
[1751343341973,0.80524,2483.1,2483.0,1.52337]
[1751343345469,0.80524,2483.1,2483.0,0.7181]
[1751343345671,0.80534,2482.8,2482.7,0.7166]
[1751343345870,0.80547,2482.4,2482.3,1.4094]
[1751343346077,3.08839241,2482.4,2482.3,1.4094]
[1751343346678,0.8055,2482.3,2482.2,1.3143]
[1751343347180,3.2078,2482.8,2482.2,3.59722241]
[1751343347487,0.80542,2482.6,2482.5,0.80541]
[1751343348392,0.80542,2482.6,2482.5,0.80542]
[1751343349187,3.2078,2482.8,2482.4,2.28292241]
[1751343349388,0.80538,2482.7,2482.5,2.16031]
[1751343349894,0.80538,2482.7,2482.6,0.8054]
[1751343350588,1.70053984,2482.7,2482.6,0.8054]
[1751343351190,0.80538,2482.7,2482.6,0.8054]
[1751343351786,4.01317,2482.8,2482.7,0.80537]
[1751343351984,0.80539,2482.7,2482.6,0.80539]
[1751343352198,6.38572103,2482.8,2482.5,2.16031]
[1751343352199,0.8054,2482.6,2482.5,2.16031]
[1751343353193,0.8054,2482.6,2482.2,1.46961]
[1751343353194,0.8055,2482.3,2482.2,1.46961]
[1751343354197,0.8055,2482.3,2482.2,0.6641]
[1751343354493,0.8055,2482.3,2482.2,1.46963]
[1751343354886,0.8055,2482.3,2482.2,0.6641]
[1751343355290,0.8055,2482.3,2482.2,1.46963]
[1751343356298,3.08841241,2482.4,2482.3,0.80547]
[1751343357400,2.28292241,2482.4,2482.3,0.80547]
[1751343357699,0.8055,2482.3,2482.2,1.46961]
[1751343358997,0.8055,2482.3,2482.2,0.6641]
[1751343359500,0.8055,2482.3,2482.2,1.46963]
[1751343363303,1.7055616,2482.3,2482.2,1.46963]
[1751343364395,1.7055616,2482.3,2482.2,0.6641]
[1751343364601,1.7055616,2482.3,2481.8,0.80563]
[1751343364602,0.80563,2481.9,2481.8,0.80563]
[1751343364796,0.80563,2481.9,2481.6,1.3687]
[1751343364797,2.28292241,2481.9,2481.6,1.3687]
[1751343364999,0.80569,2481.7,2481.6,3.51631]
[1751343365396,0.80569,2481.7,2481.6,2.7106]
[1751343365604,0.80569,2481.7,2481.6,3.51633]
[1751343366305,1.45519,2481.8,2481.7,0.80569]
[1751343366506,0.80569,2481.8,2481.7,0.80569]
[1751343366708,0.80569,2481.8,2481.7,2.16629]
[1751343367406,4.01349,2481.8,2481.7,2.16629]
[1751343367808,4.91551453,2481.8,2481.7,1.3606]
[1751343368109,4.91551453,2481.8,2481.7,2.16629]
[1751343369204,4.91551453,2481.8,2481.7,1.3606]
[1751343369407,4.91551453,2481.8,2481.7,2.16629]
[1751343370107,0.80569,2481.7,2481.6,2.17441]
[1751343370307,1.70771453,2481.7,2481.6,2.17441]
[1751343374012,0.90202453,2481.7,2481.6,2.17441]
[1751343374512,0.90202453,2481.7,2481.6,3.58601]
[1751343375311,0.90447463,2481.7,2481.6,3.58603]
[1751343375513,0.90447463,2481.7,2481.6,2.7803]
[1751343376010,0.90447463,2481.7,2481.6,3.58603]
[1751343376408,3.2078,2481.9,2481.8,0.80566]
[1751343376606,3.2078,2481.9,2481.8,3.08858241]
[1751343376815,3.2078,2482.3,2482.2,0.80553]
[1751343377002,3.2078,2482.3,2482.2,3.08845241]
[1751343377610,3.2078,2482.3,2482.2,4.39135241]
[1751343378416,4.0133,2482.3,2482.2,4.39135241]
[1751343378711,3.2078,2482.3,2482.2,4.39135241]
[1751343385624,4.0133,2482.3,2482.2,4.39135241]
[1751343385814,4.0133,2482.3,2482.2,2.10843]
[1751343387813,4.0133,2482.3,2482.2,0.80553]
[1751343390920,0.80553,2482.2,2482.1,1.3684]
[1751343391327,0.8056,2482.0,2481.9,0.8056]
[1751343392224,0.80563,2481.9,2481.8,1.3964]
[1751343392439,0.80569,2481.7,2481.6,3.2078]
[1751343392626,0.80576,2481.6,2481.5,1.48815]
[1751343395032,0.80576,2481.6,2481.5,0.6824]
[1751343396432,0.80576,2481.6,2481.5,1.48816]
[1751343396834,0.80576,2481.6,2481.5,0.6824]
[1751343397328,0.80576,2481.6,2481.5,1.48816]
[1751343397527,0.80573,2481.6,2481.5,1.48816]
[1751343397828,3.2078,2481.7,2481.6,0.80573]
[1751343398130,0.7004,2481.9,2481.8,0.80566]
[1751343398830,0.80562,2482.0,2481.9,0.80561]
[1751343399332,4.01338,2482.1,2482.0,0.8056]
[1751343399722,4.01336,2482.1,2482.0,0.8056]
[1751343399930,3.2078,2482.1,2482.0,0.8056]
[1751343400928,4.01336,2482.1,2482.0,0.8056]
[1751343401126,3.2078,2482.1,2482.0,0.8056]
[1751343401327,3.2078,2482.1,2482.0,3.08852241]
[1751343402726,3.2078,2482.1,2482.0,4.45782241]
[1751343405437,4.01327,2482.4,2482.3,0.8055]
[1751343405638,3.2078,2482.4,2482.3,0.8055]
[1751343406636,3.2078,2482.4,2482.3,3.5002]
[1751343406834,7.93400985,2482.7,2482.6,0.8054]
[1751343407033,7.12862985,2482.7,2482.6,3.08832241]
[1751343407342,0.7138,2482.7,2482.6,3.08832241]
[1751343407734,0.7138,2482.7,2482.6,0.8054]
[1751343409441,1.51917,2482.7,2482.6,0.8054]
[1751343410535,0.7138,2482.7,2482.6,0.8054]
[1751343410846,1.51917,2482.7,2482.6,0.8054]
[1751343411144,4.72697,2482.7,2482.6,0.8054]
[1751343411348,0.8054,2482.6,2482.5,0.80541]
[1751343411648,0.80543,2482.6,2482.5,0.80543]
[1751343413651,3.9216,2482.7,2482.3,4.70845]
[1751343413652,3.9216,2482.7,2482.3,1.3823]
[1751343413843,5.2162,2482.7,2482.3,1.3823]
[1751343414048,0.80545,2482.5,2482.4,0.80545]
[1751343414346,0.80547,2482.4,2482.3,2.18778]
[1751343414551,0.80546,2482.5,2482.4,0.80546]
[1751343414751,0.80547,2482.4,2482.3,2.18777]
[1751343414952,0.80547,2482.4,2482.3,0.67]
[1751343415148,0.8055,2482.3,2482.2,0.80551]
[1751343415454,1.5057,2482.3,2482.2,0.80551]
[1751343415857,0.80553,2482.2,2482.1,1.49484]
[1751343418750,4.71352,2482.3,2482.2,0.80553]
[1751343419354,3.908,2482.3,2482.2,0.80553]
[1751343419558,0.7002,2482.3,2482.2,0.80553]
[1751343419754,3.2078,2482.6,2482.2,4.29675241]
[1751343420059,3.2078,2482.6,2482.4,0.80544]
[1751343420060,0.80545,2482.5,2482.4,0.80544]
[1751343420254,0.80548,2482.4,2482.3,0.80548]
[1751343420760,0.80546,2482.5,2482.4,0.80546]
[1751343425963,0.80548,2482.4,2482.3,0.80548]
[1751343426160,8.19384241,2482.6,2482.1,0.6893]
[1751343426355,8.19384241,2482.6,2482.2,0.80552]
[1751343426356,0.80552,2482.3,2482.2,0.80552]
[1751343429560,0.80553,2482.2,2482.1,1.49484]
[1751343429764,1.47643,2482.2,2482.1,0.80556]
[1751343430368,0.80556,2482.1,2482.0,2.21218]
[1751343431361,1.47645,2482.2,2482.1,0.80556]
[1751343432367,0.80556,2482.1,2482.0,2.21217]
[1751343435871,1.47645,2482.2,2482.1,0.80556]
[1751343436066,0.6709,2482.2,2482.1,0.80556]
[1751343439276,1.47643,2482.2,2482.1,0.80556]
[1751343440272,0.80556,2482.1,2482.0,2.21218]
[1751343441670,0.80556,2482.1,2482.0,1.4066]
[1751343441874,0.80563,2482.0,2481.6,9.11046987]
[1751343442076,0.80563,2482.0,2481.9,0.80561]
[1751343442377,0.80565,2481.9,2481.8,0.80564]
[1751343442577,0.80561,2482.0,2481.9,0.8056]
[1751343444779,0.80564,2481.9,2481.8,0.80563]
[1751343445182,0.80566,2481.8,2481.7,1.52147]
[1751343445380,1.49646,2481.8,2481.7,1.52147]
[1751343445775,0.6908,2481.8,2481.7,1.52147]
[1751343447579,4.5033,2482.2,2481.7,2.99872241]
[1751343447779,3.2078,2482.2,2482.0,0.8056]
[1751343447980,0.80557,2482.1,2482.0,0.8056]
[1751343448180,0.80557,2482.1,2482.0,1.4881]
[1751343448376,6.41482985,2482.5,2482.0,2.96542241]
[1751343448575,3.20702985,2482.7,2482.4,2.28292241]
[1751343448776,3.20702985,2482.7,2482.5,1.49633]
[1751343448981,4.01240985,2482.7,2482.5,1.49633]
[1751343449386,0.8054,2482.6,2482.5,0.6909]
[1751343449578,4.01242985,2482.6,2482.5,0.80543]
[1751343450787,0.80539,2482.7,2482.6,0.8054]
[1751343452690,4.01319,2482.7,2482.6,0.8054]
[1751343453189,3.2078,2482.7,2482.6,0.8054]
[1751343454395,4.01317,2482.7,2482.6,0.8054]
[1751343456695,3.2078,2482.7,2482.6,0.8054]
[1751343457094,4.01317,2482.7,2482.6,0.8054]
[1751343457494,0.80543,2482.6,2482.5,0.8054]
[1751343457793,0.80547,2482.4,2482.3,1.49636]
[1751343457994,0.80547,2482.4,2482.3,0.80546]
[1751343458595,0.80553,2482.2,2482.1,1.335]
[1751343458796,0.80559,2482.1,2481.8,2.01415]
[1751343458998,1.50249,2482.1,2482.0,0.80558]